[Event "34rd NATO Championship 2024"]
[Site "Rhodes"]
[Date "2024.10.22"]
[Round "3.33"]
[White "Ulusoy, Mustafa"]
[Black "Pazeriene, Diana"]
[Result "0-1"]
[ECO "A48"]
[WhiteElo "1785"]
[BlackElo "1993"]
[Annotator "RC"]
[PlyCount "78"]
[EventDate "2024.09.18"]
[EventType "swiss"]
[EventCountry "GRE"]
[SourceTitle "playchess.com"]
[Source "ChessBase"]
[SourceQuality "1"]
[TimeControl "5400+30"]

1. d4 {[%emt 0:00:04]} Nf6 {[%emt 0:00:07]} 2. Nf3 {[%emt 0:00:13]} g6 {[%emt 0:00:14]} 3. Bg5 {[%emt 0:00:18]} Bg7 {[%emt 0:00:20]} 4. Bxf6 {[%emt 0:00:14]} Bxf6 {[%emt 0:00:38]} 5. e4 {[%emt 0:00:40]} d6 {[%emt 0:00:54]} 6. c3 {[%emt 0:00:25]} O-O {[%emt 0:01:07]} 7. Nbd2 {[%emt 0:00:08]} Nd7 {[%emt 0:01:33]} 8. Be2 {[%emt 0:01:10]} e5 {[%emt 1:29:37]} 9. d5 {[%emt 1:31:48]} Bg7 {[%emt 0:00:30]} 10. O-O {[%emt 0:00:00]} h6 11. Re1 {[%emt 0:00:00]} f5 12. exf5 gxf5 13. Nb3 {[%emt 0:00:00]} Nf6 {[%emt 0:00:00]} 14. c4 {[%emt 0:00:00]} b6 {[%emt 0:00:00]} 15. Qc2 {[%emt 0:00:00]} Nh7 {[%emt 0:00:00]} 16. Rad1 {[%emt 0:00:00]} Bd7 {[%emt 0:00:00]} 17. Nc1 {[%emt 0:00:00]} a5 {[%emt 0:00:00]} 18. a4 {[%emt 0:00:00]} Qf6 {[%emt 0:00:00]} 19. b3 {[%emt 0:00:00]} Ng5 {[%emt 0:00:00]} 20. Nxg5 {[%emt 0:00:00]} hxg5 {[%emt 0:00:00]} 21. f3 {[%emt 0:00:00]} Kf7 {[%emt 0:00:00]} 22. Na2 {[%emt 0:00:00]} Rh8 {[%emt 0:00:00]} 23. Nc3 {[%emt 0:00:00]} Ke7 {[%emt 0:00:00]} 24. Nb5 {[%emt 0:00:00]} Kd8 {[%emt 0:00:00]} 25. Bd3 {[%emt 0:00:00]} Kc8 {[%emt 0:00:00]} 26. Rc1 {[%emt 0:00:00]} Kb7 {[%emt 0:00:00]} 27. Nc3 {[%emt 0:00:00]} e4 {[%emt 0:00:00]} 28. fxe4 {[%emt 0:00:00]} Qd4+ {[%emt 0:00:00]} 29. Kh1 {[%emt 0:00:00]} Be5 {[%emt 0:00:00]} 30. h3 {[%emt 0:00:00]} f4 {[%emt 0:00:00]} 31. Ne2 {[%emt 0:00:00]} Qc5 {[%emt 0:00:00]} 32. Ng1 {[%emt 0:00:00]} g4 {[%emt 0:00:00]} 33. Bf1 {[%emt 0:00:00]} f3 {[%emt 0:00:00]} 34. gxf3 {[%emt 0:00:00]} gxh3 {[%emt 0:00:00]} 35. Re2 {[%emt 0:00:00]} Rag8 {[%emt 0:00:00]} 36. Bxh3 {[%emt 0:00:00]} Bxh3 {[%emt 0:00:00]} 37. Nxh3 {[%emt 0:00:00]} Rxh3+ {[%emt 0:00:00]} 38. Rh2 {[%emt 0:00:00]} Rxh2+ {[%emt 0:00:00]} 39. Qxh2 {[%emt 0:00:00]} Bxh2 {[%emt 0:00:00]} 0-1

[Event "34rd NATO Championship 2024"]
[Site "Rhodes"]
[Date "2024.10.22"]
[Round "3.34"]
[White "Koops, Janis"]
[Black "Ivsek, Cveto"]
[Result "1-0"]
[ECO "B10"]
[WhiteElo "1990"]
[BlackElo "1839"]
[Annotator "RC"]
[PlyCount "109"]
[EventDate "2024.09.18"]
[EventType "swiss"]
[EventCountry "GRE"]
[SourceTitle "playchess.com"]
[Source "ChessBase"]
[SourceQuality "1"]
[TimeControl "5400+30"]

1. e4 {[%emt 0:00:09]} c6 {[%emt 0:00:12]} 2. c4 {[%emt 0:01:46]} d5 {[%emt 0:04:19]} 3. cxd5 {[%emt 0:01:03]} cxd5 {[%emt 0:00:12]} 4. Bb5+ {[%emt 0:00:49]} Bd7 {[%emt 0:01:35]} 5. Bxd7+ {[%emt 0:01:44]} Qxd7 {[%emt 0:00:21]} 6. e5 {[%emt 0:01:03]} Nc6 {[%emt 0:04:39]} 7. d4 {[%emt 0:01:31]} e6 {[%emt 0:03:08]} 8. Ne2 {[%emt 0:02:21]} Bb4+ {[%emt 0:02:45]} 9. Nbc3 {[%emt 0:00:21]} Nge7 {[%emt 0:05:08]} 10. O-O {[%emt 0:00:56]} Nf5 {[%emt 0:06:13]} 11. g4 {[%emt 0:09:54]} Bxc3 {[%emt 0:06:31]} 12. bxc3 {[%emt 0:00:13]} Nfe7 {[%emt 0:01:51]} 13. Nf4 {[%emt 0:03:55]} g6 {[%emt 0:08:04]} 14. Nd3 {[%emt 0:04:54]} b6 {[%emt 0:00:40]} 15. Ba3 {[%emt 0:08:53]} Na5 {[%emt 0:01:47]} 16. Nb2 {[%emt 0:02:28]} Rc8 {[%emt 0:01:46]} 17. Qf3 {[%emt 0:02:32]} Nc4 {[%emt 0:05:53]} 18. Qf6 {[%emt 0:05:38]} Rg8 {[%emt 0:00:55]} 19. Nxc4 {[%emt 0:00:26]} Rxc4 {[%emt 0:01:01]} 20. Rfc1 {[%emt 0:05:00]} Nc6 {[%emt 0:01:17]} 21. Qh4 {[%emt 0:01:27]} h5 {[%emt 0:02:30]} 22. Bd6 {[%emt 0:00:29]} Qd8 {[%emt 0:02:58]} 23. g5 {[%emt 0:02:08]} Ne7 {[%emt 0:03:15]} 24. Qf4 {[%emt 0:01:54]} Nf5 {[%emt 0:00:09]} 25. Bb4 {[%emt 0:00:17]} Rh8 {[%emt 0:04:39]} 26. h4 {[%emt 0:02:17]} Qd7 {[%emt 0:02:53]} 27. Rab1 {[%emt 0:03:04]} Qc6 {[%emt 0:03:45]} 28. a4 {[%emt 0:01:22]} Kd7 {[%emt 0:00:46]} 29. a5 {[%emt 0:00:47]} Rb8 {[%emt 0:03:14]} 30. Bd6 {[%emt 0:03:05]} Rb7 {[%emt 0:00:44]} 31. a6 {[%emt 0:00:29]} Rc7 {[%emt 0:01:01]} 32. Bxc7 {[%emt 0:01:08]} Kxc7 {[%emt 0:00:14]} 33. Qd2 {[%emt 0:00:26]} Nxh4 {[%emt 0:00:29]} 34. Qb2 {[%emt 0:02:02]} Nf3+ {[%emt 0:01:03]} 35. Kg2 {[%emt 0:00:32]} Nxg5 {[%emt 0:00:17]} 36. Qa3 {[%emt 0:00:50]} Ne4 {[%emt 0:04:16]} 37. Qf8 {[%emt 0:01:08]} b5 {[%emt 0:04:52]} 38. Qe7+ {[%emt 0:05:40]} Qd7 {[%emt 0:00:24]} 39. Qxd7+ {[%emt 0:03:15]} Kxd7 {[%emt 0:00:10]} 40. Rxb5 {[%emt 0:00:05]} Rc7 {[%emt 0:03:30]} 41. Rc2 {[%emt 0:01:59]} Kc8 {[%emt 0:01:54]} 42. Rb3 {[%emt 0:00:42]} Rc6 {[%emt 0:00:38]} 43. f3 {[%emt 0:01:01]} Ng5 {[%emt 0:00:33]} 44. Ra3 {[%emt 0:00:34]} Rb6 {[%emt 0:02:44]} 45. c4 {[%emt 0:00:34]} Rc6 {[%emt 0:02:19]} 46. c5 {[%emt 0:00:10]} Nh7 {[%emt 0:00:29]} 47. Rb2 {[%emt 0:00:18]} Nf8 {[%emt 0:00:15]} 48. Rb6 {[%emt 0:02:45]} Rc7 {[%emt 0:02:20]} 49. c6 {[%emt 0:01:30]} axb6 {[%emt 0:01:38]} 50. a7 {[%emt 0:00:06]} Rxa7 {[%emt 0:00:56]} 51. Rxa7 {[%emt 0:18:20]} Nh7 {[%emt 0:02:48]} 52. Rxf7 {[%emt 0:00:00]} Ng5 {[%emt 0:00:00]} 53. Rg7 {[%emt 0:00:00]} b5 {[%emt 0:00:00]} 54. Rg8+ {[%emt 0:00:00]} Kc7 {[%emt 0:00:00]} 55. Rxg6 {[%emt 0:00:00]} 1-0

[Event "34rd NATO Championship 2024"]
[Site "Rhodes"]
[Date "2024.10.22"]
[Round "3.35"]
[White "Huidiu, Vasile-Cristian"]
[Black "Lebrun, Roger"]
[Result "1/2-1/2"]
[ECO "E61"]
[WhiteElo "1729"]
[BlackElo "1984"]
[Annotator "RC"]
[PlyCount "100"]
[EventDate "2024.09.18"]
[EventType "swiss"]
[EventCountry "GRE"]
[SourceTitle "playchess.com"]
[Source "ChessBase"]
[SourceQuality "1"]
[TimeControl "5400+30"]

1. d4 {[%emt 0:00:15]} Nf6 {[%emt 0:00:10]} 2. c4 {[%emt 0:01:20]} g6 {[%emt 0:00:16]} 3. Nf3 {[%emt 0:00:53]} Bg7 {[%emt 0:00:14]} 4. Nc3 {[%emt 0:00:44]} O-O {[%emt 0:00:25]} 5. Bg5 {[%emt 0:00:49]} d6 {[%emt 0:01:27]} 6. e3 {[%emt 0:02:29]} Nbd7 {[%emt 0:02:12]} 7. Be2 {[%emt 0:01:24]} c6 {[%emt 0:00:54]} 8. O-O {[%emt 0:01:34]} h6 {[%emt 0:01:05]} 9. Bh4 {[%emt 0:01:00]} g5 {[%emt 0:01:50]} 10. Bg3 {[%emt 0:00:06]} Nh5 {[%emt 0:00:33]} 11. Qc2 {[%emt 0:00:57]} Nxg3 {[%emt 0:02:35]} 12. hxg3 {[%emt 0:00:16]} e5 {[%emt 0:01:16]} 13. dxe5 {[%emt 0:03:24]} dxe5 {[%emt 0:01:26]} 14. Rad1 {[%emt 0:05:37]} Qe7 {[%emt 0:00:20]} 15. e4 {[%emt 0:04:41]} Nc5 {[%emt 0:07:49]} 16. Rfe1 {[%emt 0:09:55]} Ne6 {[%emt 0:03:03]} 17. Qb1 {[%emt 0:07:04]} a5 {[%emt 0:09:49]} 18. Na4 {[%emt 0:02:58]} Qb4 {[%emt 0:03:26]} 19. b3 {[%emt 0:02:39]} Nc5 {[%emt 0:02:22]} 20. Nxc5 {[%emt 0:02:08]} Qxc5 {[%emt 0:00:03]} 21. Rd2 {[%emt 0:03:04]} Be6 {[%emt 0:00:24]} 22. Red1 {[%emt 0:00:34]} Rfe8 {[%emt 0:12:54]} 23. Ne1 {[%emt 0:02:03]} g4 {[%emt 0:02:02]} 24. Nc2 {[%emt 0:02:02]} Qe7 {[%emt 0:02:42]} 25. Ne3 {[%emt 0:01:30]} Qg5 {[%emt 0:00:46]} 26. Qc2 {[%emt 0:07:01]} h5 {[%emt 0:00:34]} 27. a3 {[%emt 0:04:37]} Bh6 {[%emt 0:01:44]} 28. c5 {[%emt 0:04:31]} h4 {[%emt 0:00:57]} 29. gxh4 {[%emt 0:01:03]} Qxh4 {[%emt 0:00:09]} 30. g3 {[%emt 0:00:34]} Qh5 {[%emt 0:00:32]} 31. Qc3 {[%emt 0:04:13]} Bxe3 {[%emt 0:08:12]} 32. Qxe3 {[%emt 0:00:23]} Kg7 {[%emt 0:02:31]} 33. Bf1 {[%emt 0:01:46]} Rh8 {[%emt 0:06:49]} 34. Bg2 {[%emt 0:00:58]} Qh6 {[%emt 0:01:13]} 35. Qxh6+ {[%emt 0:01:30]} Kxh6 {[%emt 0:00:10]} 36. Rd6 {[%emt 0:00:54]} Kg5 {[%emt 0:01:15]} 37. R1d3 {[%emt 0:01:30]} Kf6 {[%emt 0:01:08]} 38. f4 {[%emt 0:03:49]} gxf3 {[%emt 0:00:38]} 39. Rxf3+ {[%emt 0:00:58]} Ke7 {[%emt 0:00:09]} 40. Rfd3 {[%emt 0:02:18]} Rad8 {[%emt 0:01:49]} 41. Rxd8 {[%emt 0:00:52]} Rxd8 {[%emt 0:00:08]} 42. Rxd8 {[%emt 0:00:07]} Kxd8 {[%emt 0:00:05]} 43. b4 {[%emt 0:00:19]} axb4 {[%emt 0:00:50]} 44. axb4 {[%emt 0:00:09]} Kc7 {[%emt 0:00:41]} 45. Kf2 {[%emt 0:00:27]} b6 {[%emt 0:00:18]} 46. Ke3 {[%emt 0:00:50]} bxc5 {[%emt 0:01:51]} 47. bxc5 {[%emt 0:00:06]} Kb7 {[%emt 0:03:13]} 48. Bf1 {[%emt 0:00:51]} Bb3 {[%emt 0:02:57]} 49. Kd3 {[%emt 0:00:58]} Ba4 {[%emt 0:02:21]} 50. Kc3 {[%emt 0:00:12]} Bd1 {[%emt 0:04:23]} 1/2-1/2

[Event "34rd NATO Championship 2024"]
[Site "Rhodes"]
[Date "2024.10.22"]
[Round "3.37"]
[White "Cavinato, Ermes"]
[Black "Verlaine, Alexandre"]
[Result "0-1"]
[ECO "B06"]
[WhiteElo "1630"]
[BlackElo "1962"]
[Annotator "RC"]
[PlyCount "90"]
[EventDate "2024.09.18"]
[EventType "swiss"]
[EventCountry "GRE"]
[SourceTitle "playchess.com"]
[Source "ChessBase"]
[SourceQuality "1"]
[TimeControl "5400+30"]

1. e4 {[%emt 0:00:18]} d6 {[%emt 0:00:26]} 2. h3 {[%emt 0:03:11]} g6 {[%emt 0:00:12]} 3. Nf3 {[%emt 0:04:27]} Bg7 {[%emt 0:00:10]} 4. Bc4 {[%emt 0:04:22]} Nf6 {[%emt 0:01:39]} 5. d3 {[%emt 0:02:17]} d5 {[%emt 0:07:04]} 6. exd5 {[%emt 0:04:50]} Nxd5 {[%emt 0:00:24]} 7. c3 {[%emt 0:02:33]} O-O {[%emt 0:01:44]} 8. O-O {[%emt 0:03:48]} c5 {[%emt 0:01:21]} 9. Re1 {[%emt 0:04:28]} Nc6 {[%emt 0:00:48]} 10. Bg5 {[%emt 0:05:01]} Be6 {[%emt 0:01:16]} 11. Bb3 {[%emt 0:05:23]} Qd7 {[%emt 0:04:44]} 12. Kh2 {[%emt 0:04:45]} Rad8 {[%emt 0:01:21]} 13. Nbd2 {[%emt 0:07:07]} h6 {[%emt 0:15:39]} 14. Be3 {[%emt 0:09:06]} b6 {[%emt 0:00:53]} 15. Bc2 {[%emt 0:07:36]} f5 {[%emt 0:07:44]} 16. Nb3 {[%emt 0:05:40]} Nxe3 {[%emt 0:05:50]} 17. fxe3 {[%emt 0:07:20]} Ne5 {[%emt 0:08:42]} 18. d4 {[%emt 0:04:32]} Nxf3+ {[%emt 0:06:10]} 19. Qxf3 {[%emt 0:02:01]} Bd5 {[%emt 0:00:49]} 20. Qf2 {[%emt 0:02:14]} Qc6 {[%emt 0:02:33]} 21. Rad1 {[%emt 0:03:15]} Kh8 {[%emt 0:05:33]} 22. Nc1 {[%emt 0:01:04]} e5 {[%emt 0:02:14]} 23. Ne2 {[%emt 0:02:44]} Bc4 {[%emt 0:19:02]} 24. b3 {[%emt 0:02:00]} Bxe2 {[%emt 0:00:27]} 25. Rxe2 {[%emt 0:00:39]} cxd4 {[%emt 0:00:59]} 26. cxd4 {[%emt 0:00:40]} exd4 {[%emt 0:00:52]} 27. exd4 {[%emt 0:00:19]} Qd6+ {[%emt 0:00:44]} 28. Kh1 {[%emt 0:00:28]} Bxd4 {[%emt 0:01:09]} 29. Red2 {[%emt 0:01:55]} Bxf2 {[%emt 0:00:25]} 30. Rxd6 {[%emt 0:00:03]} Rxd6 {[%emt 0:00:12]} 31. Rxd6 {[%emt 0:00:04]} Kg7 {[%emt 0:00:11]} 32. g4 {[%emt 0:00:41]} a5 {[%emt 0:02:32]} 33. Kg2 {[%emt 0:00:54]} Bc5 {[%emt 0:01:02]} 34. Rc6 {[%emt 0:00:19]} Rf7 {[%emt 0:00:25]} 35. a3 {[%emt 0:00:44]} Bxa3 {[%emt 0:00:54]} 36. Rxb6 {[%emt 0:00:11]} Rc7 {[%emt 0:00:28]} 37. Bd3 {[%emt 0:00:44]} Rc3 {[%emt 0:00:34]} 38. Bc4 {[%emt 0:00:50]} f4 {[%emt 0:00:44]} 39. Rb7+ {[%emt 0:00:16]} Kf6 {[%emt 0:00:21]} 40. Rb6+ {[%emt 0:00:40]} Kg5 {[%emt 0:01:32]} 41. Rb5+ {[%emt 0:00:10]} Kh4 {[%emt 0:00:27]} 42. Rxa5 {[%emt 0:00:20]} Bd6 {[%emt 0:00:31]} 43. Ra6 {[%emt 0:00:08]} f3+ {[%emt 0:00:33]} 44. Kf2 {[%emt 0:00:16]} Bc5+ {[%emt 0:00:16]} 45. Kf1 {[%emt 0:00:28]} Rc1# {[%emt 0:01:24]} 0-1

[Event "34rd NATO Championship 2024"]
[Site "Rhodes"]
[Date "2024.10.22"]
[Round "3.39"]
[White "Hart, David P O"]
[Black "Tikerpuu, Mati"]
[Result "1/2-1/2"]
[ECO "B00"]
[WhiteElo "2003"]
[BlackElo "1933"]
[Annotator "RC"]
[PlyCount "71"]
[EventDate "2024.09.18"]
[EventType "swiss"]
[EventCountry "GRE"]
[SourceTitle "playchess.com"]
[Source "ChessBase"]
[SourceQuality "1"]
[TimeControl "5400+30"]

1. d4 {[%emt 0:00:03]} e6 {[%emt 0:00:16]} 2. e4 {[%emt 0:00:27]} b6 {[%emt 0:00:08]} 3. Nf3 {[%emt 0:00:39]} Bb7 {[%emt 0:00:22]} 4. Bd3 {[%emt 0:00:36]} c5 {[%emt 0:02:30]} 5. c3 {[%emt 0:00:59]} Nf6 {[%emt 0:02:12]} 6. Bg5 {[%emt 0:00:59]} h6 {[%emt 0:00:31]} 7. Bxf6 {[%emt 0:01:14]} Qxf6 {[%emt 0:00:24]} 8. e5 {[%emt 0:01:21]} Qf4 {[%emt 0:04:18]} 9. Be2 {[%emt 0:01:43]} Nc6 {[%emt 0:03:01]} 10. O-O {[%emt 0:06:35]} Be7 {[%emt 0:07:34]} 11. Qc1 {[%emt 0:02:18]} Qxc1 {[%emt 0:10:05]} 12. Rxc1 {[%emt 0:00:08]} O-O {[%emt 0:00:36]} 13. Nbd2 {[%emt 0:01:35]} Rfd8 {[%emt 0:05:06]} 14. Nc4 {[%emt 0:08:00]} Ba6 {[%emt 0:06:33]} 15. Bf1 {[%emt 0:01:02]} Bxc4 {[%emt 0:02:50]} 16. Bxc4 {[%emt 0:00:12]} d5 {[%emt 0:01:39]} 17. exd6 {[%emt 0:10:08]} Bxd6 {[%emt 0:00:26]} 18. Bb5 {[%emt 0:01:11]} Ne7 {[%emt 0:01:09]} 19. g3 {[%emt 0:02:13]} Nf5 {[%emt 0:03:18]} 20. Rd1 {[%emt 0:03:05]} cxd4 {[%emt 0:01:31]} 21. Nxd4 {[%emt 0:01:19]} Nxd4 {[%emt 0:00:16]} 22. Rxd4 {[%emt 0:00:23]} Bc5 {[%emt 0:01:00]} 23. Rd3 {[%emt 0:01:06]} Rxd3 {[%emt 0:05:17]} 24. Bxd3 {[%emt 0:00:10]} Rd8 {[%emt 0:00:23]} 25. Rd1 {[%emt 0:00:08]} Kf8 {[%emt 0:00:28]} 26. Kf1 {[%emt 0:00:28]} Ke7 {[%emt 0:00:19]} 27. b4 {[%emt 0:00:20]} Bd6 {[%emt 0:00:35]} 28. Ke2 {[%emt 0:01:18]} Rc8 {[%emt 0:01:59]} 29. Kd2 {[%emt 0:00:34]} Be5 {[%emt 0:02:47]} 30. Rc1 {[%emt 0:00:28]} Bf6 {[%emt 0:00:38]} 31. a4 {[%emt 0:01:17]} a5 {[%emt 0:03:23]} 32. bxa5 {[%emt 0:01:49]} bxa5 {[%emt 0:00:03]} 33. c4 {[%emt 0:00:28]} Rb8 {[%emt 0:04:03]} 34. Rb1 {[%emt 0:00:29]} Rxb1 {[%emt 0:00:45]} 35. Bxb1 {[%emt 0:00:14]} Kd6 {[%emt 0:00:28]} 36. Be4 {[%emt 0:00:35]} 1/2-1/2

[Event "34rd NATO Championship 2024"]
[Site "Rhodes"]
[Date "2024.10.22"]
[Round "3.42"]
[White "Filipow, Mateusz"]
[Black "Violini, Paolo"]
[Result "1-0"]
[ECO "B24"]
[WhiteElo "1843"]
[BlackElo "1949"]
[Annotator "RC"]
[PlyCount "121"]
[EventDate "2024.09.18"]
[EventType "swiss"]
[EventCountry "GRE"]
[SourceTitle "playchess.com"]
[Source "ChessBase"]
[SourceQuality "1"]
[TimeControl "5400+30"]

1. e4 {[%emt 0:01:38]} c5 {[%emt 0:00:07]} 2. Nc3 {[%emt 0:00:09]} Nc6 {[%emt 0:00:28]} 3. f4 {[%emt 0:00:10]} g6 {[%emt 0:00:20]} 4. Nf3 {[%emt 0:00:09]} Bg7 {[%emt 0:00:07]} 5. d3 {[%emt 0:00:24]} e6 {[%emt 0:02:00]} 6. g3 {[%emt 0:00:30]} Nge7 {[%emt 0:01:59]} 7. Bg2 {[%emt 0:00:09]} O-O {[%emt 0:01:58]} 8. O-O {[%emt 0:00:24]} d5 {[%emt 0:01:18]} 9. g4 {[%emt 0:05:03]} Nd4 {[%emt 0:07:55]} 10. Nxd4 {[%emt 0:00:41]} Bxd4+ {[%emt 0:01:18]} 11. Kh1 {[%emt 0:00:08]} Bg7 {[%emt 0:01:01]} 12. Qe1 {[%emt 0:01:00]} dxe4 {[%emt 0:07:35]} 13. dxe4 {[%emt 0:00:22]} Bd7 {[%emt 0:00:30]} 14. Ne2 {[%emt 0:03:45]} Ba4 {[%emt 0:04:53]} 15. f5 {[%emt 0:08:15]} exf5 {[%emt 0:04:10]} 16. gxf5 {[%emt 0:01:05]} Qb6 {[%emt 0:02:52]} 17. Qh4 {[%emt 0:03:09]} f6 {[%emt 0:06:26]} 18. b3 {[%emt 0:19:48]} Bd7 {[%emt 0:00:42]} 19. Ng3 {[%emt 0:01:11]} Qb4 {[%emt 0:03:15]} 20. Bb2 {[%emt 0:06:48]} Rad8 {[%emt 0:10:46]} 21. Qf4 {[%emt 0:03:36]} Qb6 {[%emt 0:03:27]} 22. Rad1 {[%emt 0:02:25]} Bc6 {[%emt 0:06:24]} 23. Rxd8 {[%emt 0:08:06]} Qxd8 {[%emt 0:02:12]} 24. Bf3 {[%emt 0:09:53]} Qa5 {[%emt 0:01:54]} 25. a4 {[%emt 0:07:55]} Qb6 {[%emt 0:02:59]} 26. Qd6 {[%emt 0:01:44]} Rf7 {[%emt 0:03:56]} 27. Ba3 {[%emt 0:09:02]} Nxf5 {[%emt 0:01:45]} 28. Nxf5 {[%emt 0:01:27]} gxf5 {[%emt 0:00:01]} 29. Bxc5 {[%emt 0:01:46]} Qc7 {[%emt 0:02:25]} 30. exf5 {[%emt 0:02:07]} Qxd6 {[%emt 0:06:50]} 31. Bxd6 {[%emt 0:00:09]} Rd7 {[%emt 0:00:17]} 32. Bxc6 {[%emt 0:00:54]} bxc6 {[%emt 0:00:20]} 33. Bc5 {[%emt 0:00:20]} Bf8 {[%emt 0:01:21]} 34. Bxf8 {[%emt 0:00:56]} Kxf8 {[%emt 0:00:01]} 35. Kg2 {[%emt 0:00:21]} Rd5 {[%emt 0:00:36]} 36. Rf3 {[%emt 0:01:06]} Rd2+ {[%emt 0:00:26]} 37. Rf2 {[%emt 0:00:07]} Rd5 {[%emt 0:00:06]} 38. Kg3 {[%emt 0:00:37]} Kf7 {[%emt 0:01:56]} 39. Kf4 {[%emt 0:00:16]} c5 {[%emt 0:01:03]} 40. Ke4 {[%emt 0:01:20]} Rd4+ {[%emt 0:00:22]} 41. Ke3 {[%emt 0:00:11]} Rd5 {[%emt 0:05:10]} 42. Rf4 {[%emt 0:00:22]} a5 {[%emt 0:00:31]} 43. Ke4 {[%emt 0:01:09]} Rd2 {[%emt 0:00:36]} 44. c3 {[%emt 0:01:05]} Rb2 {[%emt 0:04:30]} 45. Kd5 {[%emt 0:00:34]} Rxb3 {[%emt 0:00:01]} 46. Kxc5 {[%emt 0:00:16]} Rxc3+ {[%emt 0:00:01]} 47. Kb5 {[%emt 0:00:10]} Rc2 {[%emt 0:01:08]} 48. h4 {[%emt 0:00:24]} h5 {[%emt 0:00:21]} 49. Kxa5 {[%emt 0:00:07]} Rg2 {[%emt 0:01:33]} 50. Kb5 {[%emt 0:00:51]} Rg4 {[%emt 0:00:36]} 51. Rf1 {[%emt 0:00:20]} Rxh4 {[%emt 0:00:42]} 52. a5 {[%emt 0:00:07]} Rh2 {[%emt 0:00:18]} 53. Ra1 {[%emt 0:00:16]} Rf2 {[%emt 0:00:28]} 54. a6 {[%emt 0:00:28]} Rb2+ {[%emt 0:01:32]} 55. Ka5 {[%emt 0:00:49]} Rb8 {[%emt 0:00:20]} 56. a7 {[%emt 0:00:25]} Ra8 {[%emt 0:00:15]} 57. Kb6 {[%emt 0:00:08]} Ke7 {[%emt 0:00:12]} 58. Kb7 {[%emt 0:00:46]} Rg8 {[%emt 0:00:11]} 59. a8=Q {[%emt 0:00:25]} Rxa8 {[%emt 0:00:03]} 60. Rxa8 {[%emt 0:00:12]} Kd6 {[%emt 0:00:06]} 61. Rh8 {[%emt 0:00:23]} 1-0

[Event "34rd NATO Championship 2024"]
[Site "Rhodes"]
[Date "2024.10.22"]
[Round "3.43"]
[White "Van den Heuvel, Tonnie"]
[Black "Farrell, John"]
[Result "1/2-1/2"]
[ECO "A06"]
[WhiteElo "1839"]
[BlackElo "1898"]
[Annotator "NA RC"]
[PlyCount "50"]
[EventDate "2024.09.18"]
[EventType "swiss"]
[EventCountry "GRE"]
[SourceTitle "playchess.com"]
[Source "ChessBase"]
[SourceQuality "1"]
[TimeControl "5400+30"]

1. b3 {[%emt 0:00:06]} d5 {[%emt 0:00:05]} 2. Bb2 {[%emt 0:00:05]} Nf6 {[%emt 0:00:13]} 3. e3 {[%emt 0:00:09]} g6 {[%emt 0:00:15]} 4. Nf3 {[%emt 0:00:21]} Bg7 {[%emt 0:00:09]} 5. d4 {[%emt 0:00:14]} O-O {[%emt 0:03:26]} 6. Be2 {[%emt 0:00:47]} Nbd7 {[%emt 0:01:21]} 7. O-O {[%emt 0:00:36]} c5 {[%emt 0:02:13]} 8. c4 cxd4 {[%emt 0:00:19]} 9. exd4 {[%emt 0:02:39]} Re8 {[%emt 0:12:39]} 10. Ne5 {[%emt 0:01:09]} Nf8 {[%emt 0:01:08]} 11. Nd2 {[%emt 0:03:23]} Ne6 {[%emt 0:01:45]} 12. Rc1 {[%emt 0:14:06]} Nc7 {[%emt 0:04:09]} 13. Ndf3 {[%emt 0:01:40]} h6 {[%emt 0:01:02]} 14. Bd3 {[%emt 0:03:52]} Bg4 {[%emt 0:05:20]} 15. Re1 {[%emt 0:09:58]} Rc8 {[%emt 0:00:57]} 16. Nxg4 Nxg4 17. h3 {[%emt 0:03:15]} Nf6 {[%emt 0:00:36]} 18. Ne5 {[%emt 0:01:16]} Nd7 {[%emt 0:15:10]} 19. Qf3 {[%emt 0:05:56]} Nxe5 {[%emt 0:00:11]} 20. dxe5 {[%emt 0:50:58]} e6 {[%emt 0:00:39]} 21. cxd5 {[%emt 0:00:00]} Nxd5 {[%emt 0:00:50]} 22. Bb5 {[%emt 0:01:00]} Re7 {[%emt 0:01:39]} 23. Rxc8 {[%emt 0:00:00]} Qxc8 {[%emt 0:00:10]} 24. Rc1 {[%emt 0:00:00]} Rc7 {[%emt 0:00:08]} 25. Rxc7 {[%emt 0:00:00]} Qxc7 {[%emt 0:00:08]} 1/2-1/2

[Event "34rd NATO Championship 2024"]
[Site "Rhodes"]
[Date "2024.10.22"]
[Round "3.44"]
[White "Heran-Boily, Samuel"]
[Black "Ross, David C"]
[Result "1-0"]
[ECO "C90"]
[WhiteElo "1898"]
[BlackElo "1788"]
[Annotator "NA RC"]
[PlyCount "87"]
[EventDate "2024.09.18"]
[EventType "swiss"]
[EventCountry "GRE"]
[SourceTitle "playchess.com"]
[Source "ChessBase"]
[SourceQuality "1"]
[TimeControl "5400+30"]

1. e4 {[%emt 0:00:02]} e5 {[%emt 0:00:08]} 2. Nf3 {[%emt 0:00:03]} Nc6 {[%emt 0:00:08]} 3. Bb5 {[%emt 0:00:05]} a6 {[%emt 0:00:08]} 4. Ba4 {[%emt 0:00:04]} Nf6 {[%emt 0:00:16]} 5. d3 {[%emt 0:00:07]} b5 {[%emt 0:01:18]} 6. Bb3 {[%emt 0:00:04]} Be7 {[%emt 0:00:38]} 7. O-O {[%emt 0:00:10]} d6 {[%emt 0:01:51]} 8. c3 {[%emt 0:00:07]} O-O {[%emt 0:02:13]} 9. Re1 {[%emt 0:00:03]} Na5 {[%emt 0:05:24]} 10. Bc2 {[%emt 0:00:08]} c5 {[%emt 0:00:38]} 11. Nbd2 {[%emt 0:00:06]} Nc6 {[%emt 0:02:26]} 12. Nf1 {[%emt 0:00:06]} Qb6 {[%emt 0:19:00]} 13. Ng3 {[%emt 0:01:10]} Rd8 {[%emt 0:03:50]} 14. Qe2 {[%emt 0:04:16]} Ra7 {[%emt 0:06:46]} 15. h3 {[%emt 0:01:11]} b4 {[%emt 0:09:23]} 16. Bd2 {[%emt 0:13:45]} a5 {[%emt 0:00:55]} 17. Ba4 {[%emt 0:11:59]} Rc7 {[%emt 0:13:52]} 18. Be3 {[%emt 0:01:02]} Ba6 {[%emt 0:02:06]} 19. Bxc6 {[%emt 0:09:09]} Qxc6 {[%emt 0:00:36]} 20. c4 {[%emt 0:00:10]} Bc8 {[%emt 0:03:26]} 21. Nh2 {[%emt 0:01:02]} Nd7 {[%emt 0:04:04]} 22. Nf5 {[%emt 0:01:12]} Nf8 {[%emt 0:04:36]} 23. g4 {[%emt 0:02:26]} Ne6 {[%emt 0:02:05]} 24. Qd2 {[%emt 0:09:29]} Nd4 {[%emt 0:06:33]} 25. Bxd4 {[%emt 0:06:03]} Bxf5 {[%emt 0:02:55]} 26. gxf5 {[%emt 0:00:07]} cxd4 {[%emt 0:00:40]} 27. Kh1 {[%emt 0:00:38]} f6 {[%emt 0:01:00]} 28. Rg1 {[%emt 0:00:15]} Bf8 {[%emt 0:01:57]} 29. Rg4 {[%emt 0:01:51]} Kf7 {[%emt 0:00:39]} 30. Rh4 {[%emt 0:03:26]} h6 {[%emt 0:00:21]} 31. Rg4 {[%emt 0:00:46]} Ke8 {[%emt 0:01:03]} 32. Nf3 {[%emt 0:00:31]} Kd7 {[%emt 0:01:01]} 33. Nh4 {[%emt 0:00:58]} Kc8 {[%emt 0:00:17]} 34. Ng6 {[%emt 0:00:18]} Qe8 {[%emt 0:00:59]} 35. a3 {[%emt 0:06:08]} Qa4 {[%emt 0:00:41]} 36. Rgg1 {[%emt 0:01:32]} b3 {[%emt 0:00:43]} 37. Rgc1 {[%emt 0:02:35]} Kb7 {[%emt 0:02:15]} 38. Rg1 {[%emt 0:01:13]} Ka6 {[%emt 0:00:14]} 39. Qd1 {[%emt 0:01:09]} Rb8 {[%emt 0:00:48]} 40. Kg2 {[%emt 0:02:00]} Qd7 {[%emt 0:00:46]} 41. Nxf8 {[%emt 0:00:37]} Rxf8 {[%emt 0:00:08]} 42. Qxb3 {[%emt 0:00:06]} Rfc8 {[%emt 0:00:23]} 43. Qd1 {[%emt 0:01:42]} g5 {[%emt 0:02:13]} 44. b4 {[%emt 0:04:22]} 1-0